fUSD/lending_fUSD_20240614
["ID","MTS","AMOUNT","RATE_DAILY","PERIOD"]
[329420177,1718328763908,-500.0,0.00026849,3]
[329420178,1718328763918,-500.0,0.00026849,3]
[329420179,1718328763940,-500.0,0.00026849,3]
[329420180,1718328763960,-922.06,0.00026849,3]
[329420181,1718328763972,-1020.66,0.00026849,3]
[329420182,1718328763984,-500.0,0.00026849,3]
[329420183,1718328763995,-1333.56,0.00026849,3]
[329420184,1718328764009,-578.22,0.00026849,3]
[329420185,1718328764020,-500.0,0.00026849,3]
[329420186,1718328764031,-904.07,0.00026849,3]
[329420187,1718328764045,-556.85,0.00026849,3]
[329420188,1718328764058,-903.49,0.00026849,3]
[329420189,1718328764073,-500.0,0.00026849,3]
[329420190,1718328764086,-512.2,0.00026849,3]
[329420191,1718328764098,-1002.39,0.00026849,3]
[329420192,1718328764113,-738.2,0.00026849,3]
[329420193,1718328764146,-500.0,0.00026849,3]
[329420194,1718328764158,-500.0,0.00026849,3]
[329420195,1718328764174,-500.0,0.00026849,3]
[329420196,1718328764185,-798.44,0.00026849,3]
[329420197,1718328764197,-250.24,0.00026849,3]
[329420198,1718328764207,-262.1,0.00026849,3]
[329420199,1718328764218,-500.0,0.00026849,3]
[329420200,1718328764230,-230.71,0.00026849,3]
[329420201,1718328764242,-500.0,0.00026849,3]
[329420202,1718328764254,-591.59,0.00026849,3]
[329420203,1718328764269,-500.0,0.00026849,3]
[329420204,1718328764281,-659.35,0.00026849,3]
[329420205,1718328764292,-569.74,0.00026849,3]
[329420206,1718328764303,-621.41,0.00026849,3]
[329420207,1718328764313,-549.56,0.00026849,3]
[329420208,1718328764331,-630.44,0.00026849,3]
[329420209,1718328764341,-500.0,0.00026849,3]
[329420210,1718328764353,-500.0,0.00026849,3]
[329420211,1718328764368,-409.09,0.00026849,3]
[329420212,1718328764384,-500.0,0.00026849,3]
[329420213,1718328764396,-2024.27,0.00026849,3]
[329420214,1718328764409,-550.31,0.00026849,3]
[329420215,1718328764420,-661.6,0.00026849,3]
[329420216,1718328764435,-1051.97,0.00026849,3]
[329420217,1718328764458,-500.0,0.00026849,3]
[329420218,1718328764472,-560.51,0.00026849,3]
[329420219,1718328764485,-2230.14,0.00026849,3]
[329420220,1718328764510,-699.68,0.00026849,3]
[329420221,1718328764525,-1026.29,0.00026849,3]
[329420222,1718328764547,-6651.01,0.00026849,3]
[329420223,1718328764559,-500.0,0.00026849,3]
[329420224,1718328764575,-500.0,0.00026849,3]
[329420225,1718328764595,-905.81,0.00026849,3]
[329420226,1718328764609,-500.0,0.00026849,3]
[329420227,1718328764630,-3969.41,0.00026849,3]
[329420228,1718328764644,-807.05,0.00026849,3]
[329420229,1718328764678,-500.0,0.00026849,3]
[329420230,1718328764697,-2365.65,0.00026849,3]
[329420231,1718328764711,-500.0,0.00026849,3]
[329420232,1718328764725,-500.0,0.00026849,3]
[329420233,1718328764738,-593.15,0.00026849,3]
[329420234,1718328764752,-2105.93,0.00026849,3]
[329420235,1718328764763,-843.89,0.00026849,3]
[329420236,1718328764785,-500.0,0.00026849,3]
[329420237,1718328764804,-598.1,0.00026849,3]
[329420238,1718328764818,-7638.61,0.00026849,3]
[329420239,1718328764845,-3190.81,0.00026849,3]
[329420240,1718328764856,-3649.11,0.00026849,3]
[329420241,1718328764878,-699.16,0.00026849,3]
[329420242,1718328764898,-1217.69,0.00026849,3]
[329420243,1718328764909,-2721.15,0.00026849,3]
[329420244,1718328764921,-500.0,0.00026849,3]
[329420245,1718328764935,-343.92,0.00026849,3]
[329420246,1718328764946,-1011.07,0.00026849,3]
[329420247,1718328764964,-1346.53,0.00026849,3]
[329420248,1718328764980,-13586.59,0.00026849,3]
[329420249,1718328764995,-2862.08,0.00026849,3]
[329420250,1718328765011,-680.82,0.00026849,3]
[329420251,1718328765035,-2933.81,0.00026849,3]
[329420252,1718328765046,-761.51,0.00026849,3]
[329420253,1718328765057,-2631.81,0.00026849,3]
[329420254,1718328765069,-563.33,0.00026849,3]
[329420255,1718328765083,-1745.88,0.00026849,3]
[329420256,1718328765099,-438.32,0.00026849,3]
[329420257,1718328765126,-1902.96,0.00026849,3]
[329420258,1718328765145,-773.16,0.00026849,3]
[329420259,1718328765170,-2172.15,0.00026849,3]
[329420260,1718328765227,-1825.98,0.00026849,3]
[329420261,1718328765243,-500.0,0.00026849,3]
[329420262,1718328765281,-679.92,0.00026849,3]
[329420263,1718328765295,-986.43,0.00026849,3]
[329420264,1718328765310,-1829.1,0.00026849,3]
[329420265,1718328765353,-1832.39,0.00026849,3]
[329420266,1718328765375,-1082.5,0.00026849,3]
[329420267,1718328765395,-638.87,0.00026849,3]
[329420268,1718328765414,-2157.56,0.00026849,3]
[329420269,1718328765440,-906.62,0.00026849,3]
[329420270,1718328765468,-500.0,0.00026849,3]
[329420271,1718328765479,-690.46,0.00026849,3]
[329420272,1718328765490,-500.0,0.00026849,3]
[329420273,1718328765511,-988.9,0.00026849,3]
[329420274,1718328765557,-731.35,0.00026849,3]
[329420275,1718328765591,-27287.16,0.00026849,3]
[329420276,1718328765609,-613.74,0.00026849,3]
[329420277,1718328765646,-500.0,0.00026849,3]
[329420278,1718328765661,-500.0,0.00026849,3]
[329420279,1718328765675,-500.0,0.00026849,3]
[329420280,1718328765690,-910.96,0.00026849,3]
[329420281,1718328765722,-500.0,0.00026849,3]
[329420282,1718328765752,-6932.08,0.00026849,3]
[329420283,1718328765769,-974.92,0.00026849,3]
[329420284,1718328765808,-2616.08,0.00026849,3]
[329420285,1718328765820,-817.09,0.00026849,3]
[329420286,1718328765837,-1080.82,0.00026849,3]
[329420287,1718328765864,-709.94,0.00026849,3]
[329420288,1718328765905,-500.0,0.00026849,3]
[329420289,1718328765922,-1643.14,0.00026849,3]
[329420290,1718328765939,-6948.28,0.00026849,3]
[329420291,1718328765972,-2321.35,0.00026849,3]
[329420292,1718328765990,-2845.46,0.00026849,3]
[329420293,1718328766011,-500.0,0.00026849,3]
[329420294,1718328766050,-1414.89,0.00026849,3]
[329420295,1718328766079,-13659.59,0.00026849,3]
[329420296,1718328766132,-1408.71,0.00026849,3]
[329420297,1718328766154,-1393.56,0.00026849,3]
[329420298,1718328766173,-1111.31,0.00026849,3]
[329420299,1718328766189,-2259.66,0.00026849,3]
[329420300,1718328766228,-532.5,0.00026849,3]
[329420301,1718328766243,-500.0,0.00026849,3]
[329420302,1718328766256,-500.0,0.00026849,3]
[329420303,1718328766305,-10075.29,0.00026849,3]
[329420304,1718328766333,-500.0,0.00026849,3]
[329420305,1718328766375,-943.27,0.00026849,3]
[329420306,1718328766433,-3909.82,0.00026849,3]
[329420307,1718328766486,-1168.64,0.00026849,3]
[329420308,1718328766528,-1483.04,0.00026849,3]
[329420309,1718328766548,-539.1,0.00026849,3]
[329420310,1718328766585,-4875.13,0.00026849,3]
[329420311,1718328766600,-500.0,0.00026849,3]
[329420312,1718328766613,-1146.24,0.00026849,3]
[329420313,1718328766628,-651.52,0.00026849,3]
[329420314,1718328766660,-500.0,0.00026849,3]
[329420315,1718328766674,-2483.67,0.00026849,3]
[329420316,1718328766700,-1056.72,0.00026849,3]
[329420317,1718328766714,-2980.85,0.00026849,3]
[329420318,1718328766743,-3759.26,0.00026849,3]
[329420319,1718328766771,-2040.13,0.00026849,3]
[329420320,1718328766786,-500.0,0.00026849,3]
[329420321,1718328766801,-949.95,0.00026849,3]
[329420322,1718328766831,-726.56,0.00026849,3]
[329420323,1718328766852,-1419.27,0.00026849,3]
[329420324,1718328766886,-1026.42,0.00026849,3]
[329420325,1718328767051,-1958.96,0.00026849,3]
[329420326,1718328767066,-1457.15,0.00026849,3]
[329420327,1718328767089,-500.0,0.00026849,3]
[329420328,1718328767104,-2166.24,0.00026849,3]
[329420329,1718328767149,-1585.82,0.00026849,3]
[329420330,1718328767172,-1164.45,0.00026849,3]
[329420331,1718328767196,-1370.89,0.00026849,3]
[329420332,1718328767211,-500.0,0.00026849,3]
[329420333,1718328767228,-500.0,0.00026849,3]
[329420334,1718328767240,-979.9,0.00026849,3]
[329420335,1718328767252,-617.62,0.00026849,3]
[329420336,1718328767271,-1246.72,0.00026849,3]
[329420337,1718328767289,-1310.68,0.00026849,3]
[329420338,1718328767316,-976.37,0.00026849,3]
[329420339,1718328767338,-928.5,0.00026849,3]
[329420340,1718328767358,-2479.24,0.00026849,3]
[329420341,1718328767380,-500.0,0.00026849,3]
[329420342,1718328767401,-1915.78,0.00026849,3]
[329420343,1718328767416,-9450.18,0.00026849,3]
[329420344,1718328767430,-758.88,0.00026849,3]
[329420345,1718328767454,-619.9,0.00026849,3]
[329420346,1718328767478,-4571.95,0.00026849,3]
[329420347,1718328767490,-1010.1,0.00026849,3]
[329420348,1718328767512,-3729.75,0.00026849,3]
[329420349,1718328767539,-1160.9,0.00026849,3]
[329420350,1718328767568,-1291.17,0.00026849,3]
[329420351,1718328767603,-1442.54,0.00026849,3]
[329420352,1718328767619,-1437.83,0.00026849,3]
[329420353,1718328767638,-1078.82,0.00026849,3]
[329420354,1718328767656,-3179.39,0.00026849,3]
[329420355,1718328767683,-4644.91,0.00026849,3]
[329420356,1718328767719,-660.45,0.00026849,3]
[329420357,1718328767741,-500.0,0.00026849,3]
[329420358,1718328767767,-500.0,0.00026849,3]
[329420359,1718328767781,-3968.87,0.00026849,3]
[329420360,1718328767806,-1085.81,0.00026849,3]
[329420361,1718328767819,-2460.17,0.00026849,3]
[329420362,1718328767832,-3852.04,0.00026849,3]
[329420363,1718328767845,-4640.65,0.00026849,3]
[329420364,1718328767859,-855.86,0.00026849,3]
[329420365,1718328767873,-1149.69,0.00026849,3]
[329420366,1718328767890,-781.38,0.00026849,3]
[329420367,1718328767903,-2477.54,0.00026849,3]
[329420368,1718328767916,-2739.81,0.00026849,3]
[329420369,1718328767930,-22917.63,0.00026849,3]
[329420370,1718328767949,-2363.24,0.00026849,3]
[329420371,1718328767961,-801.82,0.00026849,3]
[329420372,1718328767973,-1182.53,0.00026849,3]
[329420373,1718328767985,-500.0,0.00026849,3]
[329420374,1718328768009,-2489.52,0.00026849,3]
[329420375,1718328768027,-1037.71,0.00026849,3]
[329420376,1718328768043,-671.04,0.00026849,3]
[329420377,1718328768096,-2448.61,0.00026849,3]
[329420378,1718328768121,-709.17,0.00026849,3]
[329420379,1718328768134,-2250.55,0.00026849,3]
[329420380,1718328768150,-663.02,0.00026849,3]
[329420381,1718328768166,-2614.62,0.00026849,3]
[329420382,1718328768228,-500.0,0.00026849,3]
[329420383,1718328768244,-560.42,0.00026849,3]
[329420384,1718328768266,-500.0,0.00026849,3]
[329420385,1718328768334,-1131.25,0.00026849,3]
[329420386,1718328768371,-500.0,0.00026849,3]
[329420387,1718328768401,-3845.21,0.00026849,3]
[329420388,1718328768421,-967.09,0.00026849,3]
[329420389,1718328768440,-500.0,0.00026849,3]
[329420390,1718328768473,-3200.03,0.00026849,3]
[329420391,1718328768535,-714.39,0.00026849,3]
[329420392,1718328768594,-2771.64,0.00026849,3]
[329420393,1718328768626,-6182.51,0.00026849,3]
[329420394,1718328768639,-1117.03,0.00026849,3]
[329420395,1718328768661,-500.0,0.00026849,3]
[329420396,1718328768710,-818.88,0.00026849,3]
[329420397,1718328768758,-500.0,0.00026849,3]
[329420398,1718328768793,-13361.61,0.00026849,3]
[329420399,1718328768805,-1181.16,0.00026849,3]
[329420400,1718328768819,-500.0,0.00026849,3]
[329420401,1718328768832,-500.0,0.00026849,3]
[329420402,1718328768850,-740.73,0.00026849,3]
[329420403,1718328768865,-584.95,0.00026849,3]
[329420404,1718328768878,-4766.45,0.00026849,3]
[329420405,1718328768896,-932.3,0.00026849,3]
[329420406,1718328768910,-151.0,0.00026875,4]
[329420407,1718328768927,-706.80097379,0.00026998,2]
[329420408,1718328768971,-156.45762046,0.00027,4]
[329420409,1718328769009,-150.0,0.00027,2]
[329420410,1718328769036,-176.80134228,0.00027,7]
[329420411,1718328769056,-500.0,0.00027096,2]
[329420412,1718328769067,-150.0,0.000271,5]
[329420413,1718328769082,-500.0,0.00027123,3]
[329420414,1718328769094,-500.0,0.00027123,3]
[329420415,1718328769107,-500.0,0.00027123,3]
[329420416,1718328769120,-500.0,0.00027123,3]
[329420417,1718328769136,-500.0,0.00027123,3]
[329420418,1718328769171,-527.09909445,0.00027123,3]
[329420419,1718328769196,-500.0,0.00027123,3]
[329420420,1718328769209,-500.0,0.00027123,3]
[329420421,1718328769225,-535.98,0.00027123,3]
[329420422,1718328769246,-500.0,0.00027123,3]
[329420423,1718328769275,-383.29,0.00027123,3]
[329420424,1718328769326,-500.0,0.00027123,3]
[329420425,1718328769348,-539.14,0.00027123,3]
[329420426,1718328769363,-539.62,0.00027123,3]
[329420427,1718328769379,-604.49,0.00027123,3]
[329420428,1718328769390,-804.49,0.00027123,3]
[329420429,1718328769409,-500.0,0.00027123,3]
[329420430,1718328769439,-611.72,0.00027123,3]
[329420431,1718328769467,-572.62,0.00027123,3]
[329420432,1718328769489,-500.0,0.00027123,3]
[329420433,1718328769527,-500.0,0.00027123,3]
[329420434,1718328769587,-774.54,0.00027123,3]
[329420435,1718328769616,-986.18,0.00027123,3]
[329420436,1718328769639,-500.0,0.00027123,3]
[329420437,1718328769660,-500.0,0.00027123,3]
[329420438,1718328769698,-500.0,0.00027123,3]
[329420439,1718328769721,-500.0,0.00027123,3]
[329420440,1718328769740,-500.0,0.00027123,3]
[329420441,1718328769784,-500.0,0.00027123,3]
[329420442,1718328769807,-500.0,0.00027123,3]
[329420443,1718328769833,-611.61,0.00027123,3]
[329420444,1718328769849,-500.0,0.00027123,3]
[329420445,1718328769870,-500.0,0.00027123,3]
[329420446,1718328769888,-583.88,0.00027123,3]
[329420447,1718328769906,-500.0,0.00027123,3]
[329420448,1718328769930,-548.53,0.00027123,3]
[329420449,1718328769951,-500.0,0.00027123,3]
[329420450,1718328769972,-692.1,0.00027123,3]
[329420451,1718328769995,-634.92,0.00027123,3]
[329420452,1718328770017,-588.02,0.00027123,3]
[329420453,1718328770039,-500.0,0.00027123,3]
[329420454,1718328770058,-600.38,0.00027123,3]
[329420455,1718328770079,-660.68,0.00027123,3]
[329420456,1718328770096,-960.66,0.00027123,3]
[329420457,1718328770117,-500.0,0.00027123,3]
[329420458,1718328770150,-1302.28,0.00027123,3]
[329420459,1718328770174,-500.0,0.00027123,3]
[329420460,1718328770190,-617.28,0.00027123,3]
[329420461,1718328770206,-565.86,0.00027123,3]
[329420462,1718328770222,-500.0,0.00027123,3]
[329420463,1718328770239,-500.0,0.00027123,3]
[329420464,1718328770257,-500.0,0.00027123,3]
[329420465,1718328770281,-883.98,0.00027123,3]
[329420466,1718328770298,-528.45,0.00027123,3]
[329420467,1718328770320,-742.73,0.00027123,3]
[329420468,1718328770344,-643.48,0.00027123,3]
[329420469,1718328770369,-500.0,0.00027123,3]
[329420470,1718328770389,-500.0,0.00027123,3]
[329420471,1718328770413,-500.0,0.00027123,3]
[329420472,1718328770439,-598.84,0.00027123,3]
[329420473,1718328770459,-500.0,0.00027123,3]
[329420474,1718328770479,-500.0,0.00027123,3]
[329420475,1718328770506,-500.0,0.00027123,3]
[329420476,1718328770536,-323.9,0.00027123,3]
[329420477,1718328770576,-719.93,0.00027123,3]
[329420478,1718328770593,-500.0,0.00027123,3]
[329420479,1718328770612,-500.0,0.00027123,3]
[329420480,1718328770629,-500.0,0.00027123,3]
[329420481,1718328770646,-500.0,0.00027123,3]
[329420482,1718328770662,-500.0,0.00027123,3]
[329420483,1718328770688,-500.0,0.00027123,3]
[329420484,1718328770712,-997.89,0.00027123,3]
[329420485,1718328770731,-383.6,0.00027123,3]
[329420486,1718328770763,-500.0,0.00027123,3]
[329420487,1718328770796,-1232.27,0.00027123,3]
[329420488,1718328770813,-500.0,0.00027123,3]
[329420489,1718328770831,-500.0,0.00027123,3]
[329420490,1718328770848,-500.0,0.00027123,3]
[329420491,1718328770864,-500.0,0.00027123,3]
[329420492,1718328770881,-545.28,0.00027123,3]
[329420493,1718328770911,-695.7,0.00027123,3]
[329420494,1718328770927,-552.3,0.00027123,3]
[329420495,1718328770954,-500.0,0.00027123,3]
[329420496,1718328770970,-500.0,0.00027123,3]
[329420497,1718328770989,-500.0,0.00027123,3]
[329420498,1718328771012,-922.06,0.00027123,3]
[329420499,1718328771048,-1020.66,0.00027123,3]
[329420500,1718328771073,-500.0,0.00027123,3]
[329420501,1718328771090,-1333.56,0.00027123,3]
[329420502,1718328771112,-578.22,0.00027123,3]
[329420503,1718328771128,-500.0,0.00027123,3]
[329420504,1718328771145,-904.07,0.00027123,3]
[329420505,1718328771172,-556.85,0.00027123,3]
[329420506,1718328771197,-903.49,0.00027123,3]
[329420507,1718328771223,-500.0,0.00027123,3]
[329420508,1718328771240,-512.2,0.00027123,3]
[329420509,1718328771261,-1002.39,0.00027123,3]
[329420510,1718328771276,-738.2,0.00027123,3]
[329420511,1718328771302,-500.0,0.00027123,3]
[329420512,1718328771323,-500.0,0.00027123,3]
[329420513,1718328771342,-272.52451123,0.00027123,3]
[329420514,1718328771365,-798.44,0.00027123,3]
[329420515,1718328771393,-262.1,0.00027123,3]
[329420516,1718328771415,-500.0,0.00027123,3]
[329420517,1718328771435,-500.0,0.00027123,3]
[329420518,1718328771458,-591.59,0.00027123,3]
[329420519,1718328771486,-500.0,0.00027123,3]
[329420520,1718328771521,-659.35,0.00027123,3]
[329420521,1718328771546,-569.74,0.00027123,3]
[329420522,1718328771577,-621.41,0.00027123,3]
[329420523,1718328771609,-549.56,0.00027123,3]
[329420524,1718328771635,-630.44,0.00027123,3]
[329420525,1718328771655,-500.0,0.00027123,3]
[329420526,1718328771674,-500.0,0.00027123,3]
[329420527,1718328771693,-2024.27,0.00027123,3]
[329420528,1718328771710,-500.0,0.00027123,3]
[329420529,1718328771731,-550.31,0.00027123,3]
[329420530,1718328771748,-661.6,0.00027123,3]
[329420531,1718328771791,-1051.97,0.00027123,3]
[329420532,1718328771813,-500.0,0.00027123,3]
[329420533,1718328771838,-560.51,0.00027123,3]
[329420534,1718328771867,-2230.14,0.00027123,3]
[329420535,1718328771883,-699.68,0.00027123,3]
[329420536,1718328771930,-1026.29,0.00027123,3]
[329420537,1718328771961,-6651.01,0.00027123,3]
[329420538,1718328771979,-500.0,0.00027123,3]
[329420539,1718328772021,-500.0,0.00027123,3]
[329420540,1718328772042,-905.81,0.00027123,3]
[329420541,1718328772260,-500.0,0.00027123,3]
[329420542,1718328772278,-3969.41,0.00027123,3]
[329420543,1718328772300,-807.05,0.00027123,3]
[329420544,1718328772326,-500.0,0.00027123,3]
[329420545,1718328772339,-2365.65,0.00027123,3]
[329420546,1718328772352,-500.0,0.00027123,3]
[329420547,1718328772366,-176.72,0.00027123,3]
[329420548,1718328772393,-593.15,0.00027123,3]
[329420549,1718328772411,-2105.93,0.00027123,3]
[329420550,1718328772445,-843.89,0.00027123,3]
[329420551,1718328772459,-500.0,0.00027123,3]
[329420552,1718328772484,-598.1,0.00027123,3]
[329420553,1718328772513,-7638.61,0.00027123,3]
[329420554,1718328772525,-3190.81,0.00027123,3]
[329420555,1718328772547,-3649.11,0.00027123,3]
[329420556,1718328772582,-699.16,0.00027123,3]
[329420557,1718328772614,-1217.69,0.00027123,3]
[329420558,1718328772637,-2721.15,0.00027123,3]
[329420559,1718328772667,-500.0,0.00027123,3]
[329420560,1718328772682,-1011.07,0.00027123,3]
[329420561,1718328772697,-1346.53,0.00027123,3]
[329420562,1718328772713,-13586.59,0.00027123,3]
[329420563,1718328772732,-680.82,0.00027123,3]
[329420564,1718328772747,-2862.08,0.00027123,3]
[329420565,1718328772761,-2933.81,0.00027123,3]
[329420566,1718328772772,-761.51,0.00027123,3]
[329420567,1718328772789,-2631.81,0.00027123,3]
[329420568,1718328772803,-563.33,0.00027123,3]
[329420569,1718328772817,-1745.88,0.00027123,3]
[329420570,1718328772833,-1902.96,0.00027123,3]
[329420571,1718328772849,-773.16,0.00027123,3]
[329420572,1718328772866,-2172.15,0.00027123,3]
[329420573,1718328772878,-1825.98,0.00027123,3]
[329420574,1718328772891,-500.0,0.00027123,3]
[329420575,1718328772910,-679.92,0.00027123,3]
[329420576,1718328772931,-986.43,0.00027123,3]
[329420577,1718328772962,-1829.1,0.00027123,3]
[329420578,1718328772981,-1082.5,0.00027123,3]
[329420579,1718328773004,-1832.39,0.00027123,3]
[329420580,1718328773016,-638.87,0.00027123,3]
[329420581,1718328773036,-2157.56,0.00027123,3]
[329420582,1718328773071,-906.62,0.00027123,3]
[329420583,1718328773086,-500.0,0.00027123,3]
[329420584,1718328773114,-690.46,0.00027123,3]
[329420585,1718328773128,-500.0,0.00027123,3]
[329420586,1718328773143,-988.9,0.00027123,3]
[329420587,1718328773156,-731.35,0.00027123,3]
[329420588,1718328773177,-27287.16,0.00027123,3]
[329420589,1718328773189,-613.74,0.00027123,3]
[329420590,1718328773201,-500.0,0.00027123,3]
[329420591,1718328773215,-500.0,0.00027123,3]
[329420592,1718328773231,-500.0,0.00027123,3]
[329420593,1718328773244,-500.0,0.00027123,3]
[329420594,1718328773258,-6932.08,0.00027123,3]
[329420595,1718328773280,-910.96,0.00027123,3]
[329420596,1718328773296,-974.92,0.00027123,3]
[329420597,1718328773341,-2616.08,0.00027123,3]
[329420598,1718328773388,-817.09,0.00027123,3]
[329420599,1718328773422,-1080.82,0.00027123,3]
[329420600,1718328773455,-709.94,0.00027123,3]
[329420601,1718328773479,-500.0,0.00027123,3]
[329420602,1718328773508,-1643.14,0.00027123,3]
[329420603,1718328773540,-6948.28,0.00027123,3]
[329420604,1718328773572,-2321.35,0.00027123,3]
[329420605,1718328773587,-2845.46,0.00027123,3]
[329420606,1718328773600,-500.0,0.00027123,3]
[329420607,1718328773626,-1414.89,0.00027123,3]
[329420608,1718328773640,-13659.59,0.00027123,3]
[329420609,1718328773651,-1408.71,0.00027123,3]
[329420610,1718328773663,-1393.56,0.00027123,3]
[329420611,1718328773677,-1111.31,0.00027123,3]
[329420612,1718328773691,-2259.66,0.00027123,3]
[329420613,1718328773706,-500.0,0.00027123,3]
[329420614,1718328773722,-500.0,0.00027123,3]
[329420615,1718328773739,-10075.29,0.00027123,3]
[329420616,1718328773782,-500.0,0.00027123,3]
[329420617,1718328773806,-943.27,0.00027123,3]
[329420618,1718328773832,-3909.82,0.00027123,3]
[329420619,1718328773845,-1168.64,0.00027123,3]
[329420620,1718328773856,-1483.04,0.00027123,3]
[329420621,1718328773871,-4875.13,0.00027123,3]
[329420622,1718328773887,-500.0,0.00027123,3]
[329420623,1718328773898,-1146.24,0.00027123,3]
[329420624,1718328773911,-651.52,0.00027123,3]
[329420625,1718328773925,-500.0,0.00027123,3]
[329420626,1718328773940,-2483.67,0.00027123,3]
[329420627,1718328773952,-1056.72,0.00027123,3]
[329420628,1718328773966,-3759.26,0.00027123,3]
[329420629,1718328773987,-2980.85,0.00027123,3]
[329420630,1718328774007,-2040.13,0.00027123,3]
[329420631,1718328774020,-949.95,0.00027123,3]
[329420632,1718328774037,-500.0,0.00027123,3]
[329420633,1718328774051,-726.56,0.00027123,3]
[329420634,1718328774108,-1419.27,0.00027123,3]
[329420635,1718328774121,-1026.42,0.00027123,3]
[329420636,1718328774138,-1958.96,0.00027123,3]
[329420637,1718328774164,-1457.15,0.00027123,3]
[329420638,1718328774180,-500.0,0.00027123,3]
[329420639,1718328774195,-2166.24,0.00027123,3]
[329420640,1718328774206,-1164.45,0.00027123,3]
[329420641,1718328774225,-1585.82,0.00027123,3]
[329420642,1718328774238,-1370.89,0.00027123,3]
[329420643,1718328774265,-500.0,0.00027123,3]
[329420644,1718328774316,-350.3,0.00027123,3]
[329420645,1718328774329,-979.9,0.00027123,3]
[329420646,1718328774339,-617.62,0.00027123,3]
[329420647,1718328774351,-1246.72,0.00027123,3]
[329420648,1718328774372,-1310.68,0.00027123,3]
[329420649,1718328774399,-976.37,0.00027123,3]
[329420650,1718328774412,-928.5,0.00027123,3]
[329420651,1718328774425,-2479.24,0.00027123,3]
[329420652,1718328774440,-500.0,0.00027123,3]
[329420653,1718328774452,-1915.78,0.00027123,3]
[329420654,1718328774463,-9450.18,0.00027123,3]
[329420655,1718328774481,-758.88,0.00027123,3]
[329420656,1718328774495,-4571.95,0.00027123,3]
[329420657,1718328774516,-1010.1,0.00027123,3]
[329420658,1718328774550,-3729.75,0.00027123,3]
[329420659,1718328774563,-1291.17,0.00027123,3]
[329420660,1718328774574,-1160.9,0.00027123,3]
[329420661,1718328774591,-1437.83,0.00027123,3]
[329420662,1718328774607,-1442.54,0.00027123,3]
[329420663,1718328774620,-1078.82,0.00027123,3]
[329420664,1718328774633,-3179.39,0.00027123,3]
[329420665,1718328774660,-4644.91,0.00027123,3]
[329420666,1718328774691,-660.45,0.00027123,3]
[329420667,1718328774704,-500.0,0.00027123,3]
[329420668,1718328774725,-3968.87,0.00027123,3]
[329420669,1718328774738,-249.14252605,0.00027123,3]
[329420670,1718328774769,-1085.81,0.00027123,3]
[329420671,1718328774781,-2460.17,0.00027123,3]
[329420672,1718328774793,-3852.04,0.00027123,3]
[329420673,1718328774818,-4640.65,0.00027123,3]
[329420674,1718328774839,-855.86,0.00027123,3]
[329420675,1718328774877,-1149.69,0.00027123,3]
[329420676,1718328774893,-781.38,0.00027123,3]